[Event "*** Titled Tuesday Blitz"]
[Site "Chess.com"]
[Date "2020.04.21"]
[Round "2"]
[White "Vesper2018"]
[Black "losersgame"]
[Result "1-0"]
[WhiteElo "1980"]
[BlackElo "2358"]
[TimeControl "180+1"]
[EndTime "10:18:30 PDT"]
[Termination "Vesper2018 won on time"]

1. e4 {[%clk 0:03:00.2]} 1... e5 {[%clk 0:02:59.6]} 2. Nf3 {[%clk 0:03:00.3]}
2... Nc6 {[%clk 0:02:59.5]} 3. Bc4 {[%clk 0:03:00.5]} 3... Bc5 {[%clk
0:02:58.9]} 4. d3 {[%clk 0:02:58.3]} 4... Nf6 {[%clk 0:02:57.8]} 5. Bg5 {[%clk
0:02:58]} 5... d6 {[%clk 0:02:54.2]} 6. Nc3 {[%clk 0:02:57.2]} 6... h6 {[%clk
0:02:49.5]} 7. Bh4 {[%clk 0:02:56.1]} 7... Be6 {[%clk 0:02:46.9]} 8. O-O {[%clk
0:02:49.2]} 8... g5 {[%clk 0:02:45.7]} 9. Bg3 {[%clk 0:02:48.8]} 9... Qd7 {[%clk
0:02:42.9]} 10. a4 {[%clk 0:02:33.5]} 10... h5 {[%clk 0:02:28.4]} 11. Bxe6
{[%clk 0:02:07.3]} 11... fxe6 {[%clk 0:02:26.4]} 12. h4 {[%clk 0:02:07.4]} 12...
gxh4 {[%clk 0:02:13.7]} 13. Nxh4 {[%clk 0:01:59]} 13... O-O-O {[%clk 0:02:10.9]}
14. Ne2 {[%clk 0:01:50.5]} 14... Rhg8 {[%clk 0:02:08.3]} 15. c3 {[%clk
0:01:46.2]} 15... Rdf8 {[%clk 0:01:42]} 16. b4 {[%clk 0:01:36]} 16... Nxb4
{[%clk 0:01:22.2]} 17. cxb4 {[%clk 0:01:35.3]} 17... Bxb4 {[%clk 0:01:22.8]} 18.
a5 {[%clk 0:01:12.1]} 18... Bc5 {[%clk 0:01:19.3]} 19. Rb1 {[%clk 0:01:04.2]}
19... Ng4 {[%clk 0:01:09.5]} 20. d4 {[%clk 0:00:51.1]} 20... exd4 {[%clk
0:01:08.1]} 21. Nxd4 {[%clk 0:00:51.1]} 21... Qe7 {[%clk 0:00:42.6]} 22. Qd2
{[%clk 0:00:25.8]} 22... Nxf2 {[%clk 0:00:31.2]} 23. Bxf2 {[%clk 0:00:22]} 23...
Rxf2 {[%clk 0:00:30.1]} 24. Qxf2 {[%clk 0:00:18.7]} 24... e5 {[%clk 0:00:30.4]}
25. Nhf5 {[%clk 0:00:18.1]} 25... Qg5 {[%clk 0:00:29.1]} 26. Rfd1 {[%clk
0:00:14.7]} 26... exd4 {[%clk 0:00:28.7]} 27. Rd3 {[%clk 0:00:14.8]} 27... a6
{[%clk 0:00:24.2]} 28. Rf1 {[%clk 0:00:09.2]} 28... h4 {[%clk 0:00:21.8]} 29.
Qf3 {[%clk 0:00:08.1]} 29... Kb8 {[%clk 0:00:19.4]} 30. Qh3 {[%clk 0:00:08.2]}
30... Ka7 {[%clk 0:00:19]} 31. Kh1 {[%clk 0:00:08.6]} 31... Qg6 {[%clk
0:00:17.2]} 32. Rdf3 {[%clk 0:00:07.7]} 32... Qe6 {[%clk 0:00:16.8]} 33. Nxd4
{[%clk 0:00:06.9]} 33... Qxe4 {[%clk 0:00:16.2]} 34. Rf4 {[%clk 0:00:06.8]}
34... Qe5 {[%clk 0:00:15.1]} 35. Nf5 {[%clk 0:00:06.7]} 35... Qe2 {[%clk
0:00:13.2]} 36. Qf3 {[%clk 0:00:06.3]} 36... Qc2 {[%clk 0:00:12.4]} 37. Qe4
{[%clk 0:00:05.2]} 37... Qa2 {[%clk 0:00:10.7]} 38. Nxh4 {[%clk 0:00:05]} 38...
Rh8 {[%clk 0:00:10.1]} 39. Qf3 {[%clk 0:00:04.9]} 39... Qd2 {[%clk 0:00:08.2]}
40. Qe4 {[%clk 0:00:04.5]} 40... Qc3 {[%clk 0:00:06.9]} 41. Qf3 {[%clk
0:00:04.2]} 41... Qe5 {[%clk 0:00:06.3]} 42. g3 {[%clk 0:00:04.3]} 42... Qb2
{[%clk 0:00:05.5]} 43. Qd3 {[%clk 0:00:03.5]} 43... Re8 {[%clk 0:00:04.2]} 44.
Qf3 {[%clk 0:00:03.5]} 44... Re2 {[%clk 0:00:04]} 45. Ng2 {[%clk 0:00:02.3]}
45... Qh8+ {[%clk 0:00:02.6]} 46. Rh4 {[%clk 0:00:02.6]} 46... Qb2 {[%clk
0:00:02.2]} 47. Qd5 {[%clk 0:00:01.9]} 47... Rd2 {[%clk 0:00:02.4]} 48. Qf3
{[%clk 0:00:02]} 48... Rc2 {[%clk 0:00:02.3]} 49. Re1 {[%clk 0:00:01.1]} 49...
Rd2 {[%clk 0:00:02]} 50. Rf1 {[%clk 0:00:01.5]} 50... Rc2 {[%clk 0:00:02.1]} 51.
Rh5 {[%clk 0:00:02]} 51... Rc3 {[%clk 0:00:02.2]} 52. Qe4 {[%clk 0:00:01.8]}
52... Rxg3 {[%clk 0:00:02.1]} 53. Rh7 {[%clk 0:00:01.3]} 1-0

[Event "*** Titled Tuesday Blitz"]
[Site "Chess.com"]
[Date "2020.04.21"]
[Round "2"]
[White "hypert"]
[Black "arjwezhrtdrz"]
[Result "1/2-1/2"]
[WhiteElo "2502"]
[BlackElo "2160"]
[TimeControl "180+1"]
[EndTime "10:18:31 PDT"]
[Termination "Game drawn - insufficient material"]

1. Nf3 {[%clk 0:03:00.9]} 1... d6 {[%clk 0:02:59.2]} 2. g3 {[%clk 0:03:01.3]}
2... c6 {[%clk 0:02:59.5]} 3. Bg2 {[%clk 0:03:01.9]} 3... Nf6 {[%clk 0:03:00.4]}
4. O-O {[%clk 0:03:02.5]} 4... Nbd7 {[%clk 0:03:01.1]} 5. d4 {[%clk 0:03:03.1]}
5... e5 {[%clk 0:03:02]} 6. c4 {[%clk 0:03:03.4]} 6... Be7 {[%clk 0:03:02]} 7.
Nc3 {[%clk 0:03:03.7]} 7... O-O {[%clk 0:03:01.9]} 8. Rb1 {[%clk 0:03:01.4]}
8... a5 {[%clk 0:03:01]} 9. a3 {[%clk 0:02:58.5]} 9... exd4 {[%clk 0:03:01.1]}
10. Nxd4 {[%clk 0:02:58.2]} 10... Nc5 {[%clk 0:03:01.3]} 11. b4 {[%clk
0:02:56.8]} 11... axb4 {[%clk 0:03:00]} 12. axb4 {[%clk 0:02:57.7]} 12... Ne6
{[%clk 0:02:50]} 13. Nf5 {[%clk 0:02:56.8]} 13... Qc7 {[%clk 0:02:48.9]} 14. b5
{[%clk 0:02:42.7]} 14... Re8 {[%clk 0:02:48.8]} 15. Nxe7+ {[%clk 0:02:34.2]}
15... Rxe7 {[%clk 0:02:47.4]} 16. Be3 {[%clk 0:02:33.9]} 16... Ng4 {[%clk
0:02:35.2]} 17. Bc1 {[%clk 0:02:33.9]} 17... h6 {[%clk 0:02:32.9]} 18. h3 {[%clk
0:02:31.3]} 18... Nf6 {[%clk 0:02:32.8]} 19. Be3 {[%clk 0:02:31.9]} 19... Nc5
{[%clk 0:02:30.6]} 20. b6 {[%clk 0:02:16.5]} 20... Qb8 {[%clk 0:02:23.8]} 21.
Bxc5 {[%clk 0:02:15.7]} 21... dxc5 {[%clk 0:02:23.7]} 22. Na4 {[%clk 0:02:02.7]}
22... Bf5 {[%clk 0:02:01.4]} 23. Ra1 {[%clk 0:01:58.2]} 23... Qe8 {[%clk
0:01:45]} 24. Nxc5 {[%clk 0:01:54.3]} 24... Rxa1 {[%clk 0:01:42.6]} 25. Qxa1
{[%clk 0:01:55.2]} 25... Qd8 {[%clk 0:01:20.9]} 26. Qa7 {[%clk 0:01:26.2]} 26...
Qc8 {[%clk 0:01:20.8]} 27. Ra1 {[%clk 0:01:23.4]} 27... Bxh3 {[%clk 0:01:11.7]}
28. Qa8 {[%clk 0:01:20]} 28... Re8 {[%clk 0:01:10.2]} 29. Qxc8 {[%clk
0:00:47.2]} 29... Bxc8 {[%clk 0:01:11.1]} 30. Ra7 {[%clk 0:00:47.2]} 30... Rxe2
{[%clk 0:00:34.8]} 31. Ra8 {[%clk 0:00:46]} 31... Re1+ {[%clk 0:00:28.6]} 32.
Kh2 {[%clk 0:00:45.3]} 32... Re8 {[%clk 0:00:27.9]} 33. Bh3 {[%clk 0:00:33.4]}
33... Bxh3 {[%clk 0:00:23.4]} 34. Rxe8+ {[%clk 0:00:32.3]} 34... Nxe8 {[%clk
0:00:24.3]} 35. Kxh3 {[%clk 0:00:32.7]} 35... Nd6 {[%clk 0:00:23.9]} 36. Kg4
{[%clk 0:00:30.1]} 36... Nxc4 {[%clk 0:00:24.1]} 37. Nd7 {[%clk 0:00:26.7]}
37... f6 {[%clk 0:00:21.4]} 38. Kf5 {[%clk 0:00:24.7]} 38... Kf7 {[%clk
0:00:21.5]} 39. Nc5 {[%clk 0:00:20.7]} 39... Nxb6 {[%clk 0:00:20.9]} 40. Nxb7
{[%clk 0:00:21.1]} 40... g6+ {[%clk 0:00:17.1]} 41. Ke4 {[%clk 0:00:20.4]} 41...
Ke6 {[%clk 0:00:14]} 42. Kd4 {[%clk 0:00:20.7]} 42... Nd7 {[%clk 0:00:12.2]} 43.
Nd8+ {[%clk 0:00:19.5]} 43... Kf5 {[%clk 0:00:08.2]} 44. Nxc6 {[%clk 0:00:19.1]}
44... Kg4 {[%clk 0:00:07.2]} 45. Ke3 {[%clk 0:00:18.7]} 45... Kf5 {[%clk
0:00:05.5]} 46. Ne7+ {[%clk 0:00:18.7]} 46... Kg4 {[%clk 0:00:04.7]} 47. Nxg6
{[%clk 0:00:17.7]} 47... Ne5 {[%clk 0:00:03.4]} 48. Nxe5+ {[%clk 0:00:17.5]}
48... fxe5 {[%clk 0:00:03.6]} 49. Ke4 {[%clk 0:00:18.1]} 49... h5 {[%clk
0:00:02.8]} 50. Kxe5 {[%clk 0:00:14.3]} 50... Kf3 {[%clk 0:00:02.9]} 51. Kf5
{[%clk 0:00:14.6]} 51... Kxf2 {[%clk 0:00:03.2]} 52. Kf4 {[%clk 0:00:14.8]}
52... Kg2 {[%clk 0:00:02.9]} 53. Kg5 {[%clk 0:00:14.9]} 53... Kxg3 {[%clk
0:00:03.1]} 54. Kxh5 {[%clk 0:00:15.4]} 1/2-1/2

[Event "*** Titled Tuesday Blitz"]
[Site "Chess.com"]
[Date "2020.04.21"]
[Round "2"]
[White "abubakrtagelsir"]
[Black "Maitreia"]
[Result "0-1"]
[WhiteElo "2333"]
[BlackElo "2699"]
[TimeControl "180+1"]
[EndTime "10:18:32 PDT"]
[Termination "Maitreia won on time"]

1. e4 {[%clk 0:03:00]} 1... c5 {[%clk 0:02:51.5]} 2. Nc3 {[%clk 0:02:59]} 2...
g6 {[%clk 0:02:50.3]} 3. f4 {[%clk 0:02:58.6]} 3... Bg7 {[%clk 0:02:48.8]} 4.
Nf3 {[%clk 0:02:58.4]} 4... Nc6 {[%clk 0:02:48.7]} 5. Bb5 {[%clk 0:02:57.9]}
5... Nd4 {[%clk 0:02:43.7]} 6. O-O {[%clk 0:02:57.1]} 6... Nxb5 {[%clk
0:02:38.7]} 7. Nxb5 {[%clk 0:02:56.6]} 7... d6 {[%clk 0:02:39.6]} 8. d3 {[%clk
0:02:56.4]} 8... Nf6 {[%clk 0:02:38.3]} 9. Qe1 {[%clk 0:02:55.9]} 9... Bg4
{[%clk 0:02:37.7]} 10. Nc3 {[%clk 0:02:49]} 10... O-O {[%clk 0:02:35.6]} 11. Qh4
{[%clk 0:02:47]} 11... Bxf3 {[%clk 0:02:34.8]} 12. Rxf3 {[%clk 0:02:46.3]} 12...
e6 {[%clk 0:02:35.2]} 13. Rh3 {[%clk 0:02:45.5]} 13... h5 {[%clk 0:02:34]} 14.
Ne2 {[%clk 0:02:39.7]} 14... Ng4 {[%clk 0:02:34]} 15. Qg3 {[%clk 0:02:31.2]}
15... d5 {[%clk 0:02:17.9]} 16. e5 {[%clk 0:02:17.7]} 16... f6 {[%clk
0:02:13.2]} 17. exf6 {[%clk 0:02:08.8]} 17... Qxf6 {[%clk 0:02:13]} 18. c3
{[%clk 0:02:08.3]} 18... d4 {[%clk 0:02:06.3]} 19. c4 {[%clk 0:02:03.8]} 19...
Rae8 {[%clk 0:02:05.9]} 20. Bd2 {[%clk 0:02:03.4]} 20... e5 {[%clk 0:02:05.2]}
21. Rf1 {[%clk 0:02:01.8]} 21... e4 {[%clk 0:02:04.3]} 22. f5 {[%clk 0:01:52.7]}
22... e3 {[%clk 0:01:37.6]} 23. Be1 {[%clk 0:01:45.4]} 23... Qg5 {[%clk
0:01:36.1]} 24. Qc7 {[%clk 0:01:15.3]} 24... Rxf5 {[%clk 0:01:11.6]} 25. Rxf5
{[%clk 0:01:12.1]} 25... Qxf5 {[%clk 0:01:12.5]} 26. Qxb7 {[%clk 0:00:59.4]}
26... Qxd3 {[%clk 0:01:04.9]} 27. Qd5+ {[%clk 0:00:54.8]} 27... Kh7 {[%clk
0:01:03.3]} 28. Nf4 {[%clk 0:00:39.7]} 28... Qe4 {[%clk 0:00:52.1]} 29. Qg5
{[%clk 0:00:34]} 29... Bh6 {[%clk 0:00:48.1]} 30. Qh4 {[%clk 0:00:20.2]} 30...
Qxf4 {[%clk 0:00:41.5]} 31. Rf3 {[%clk 0:00:19.4]} 31... Qg5 {[%clk 0:00:36.4]}
32. Qg3 {[%clk 0:00:18.7]} 32... Re7 {[%clk 0:00:32.4]} 33. Qd6 {[%clk
0:00:10.9]} 33... Rg7 {[%clk 0:00:23.8]} 34. Qb8 {[%clk 0:00:06.9]} 34... Qe5
{[%clk 0:00:21.6]} 35. Qd8 {[%clk 0:00:04.7]} 35... Qxh2+ {[%clk 0:00:20.7]} 36.
Kf1 {[%clk 0:00:04.8]} 36... Qh1+ {[%clk 0:00:21.6]} 37. Ke2 {[%clk 0:00:05]}
37... Qxg2+ {[%clk 0:00:22.5]} 38. Bf2 {[%clk 0:00:05.2]} 38... Nxf2 {[%clk
0:00:19.2]} 39. Rf8 {[%clk 0:00:04]} 39... Ng4+ {[%clk 0:00:18.2]} 40. Kd3
{[%clk 0:00:04.2]} 40... Qd2+ {[%clk 0:00:16.5]} 41. Ke4 {[%clk 0:00:04.4]}
41... Qg2+ {[%clk 0:00:12.9]} 42. Kd3 {[%clk 0:00:03.2]} 42... Nf2+ {[%clk
0:00:12.3]} 43. Kc2 {[%clk 0:00:02.5]} 43... Ne4+ {[%clk 0:00:11.6]} 44. Kb3
{[%clk 0:00:02.5]} 44... Rb7+ {[%clk 0:00:08.5]} 45. Ka4 {[%clk 0:00:02.5]}
45... Bg7 {[%clk 0:00:08.7]} 0-1

[Event "*** Titled Tuesday Blitz"]
[Site "Chess.com"]
[Date "2020.04.21"]
[Round "2"]
[White "colegiodemadrid"]
[Black "qqwow"]
[Result "1-0"]
[WhiteElo "2316"]
[BlackElo "2521"]
[TimeControl "180+1"]
[EndTime "10:18:32 PDT"]
[Termination "colegiodemadrid won by resignation"]

1. e4 {[%clk 0:03:00.9]} 1... c5 {[%clk 0:02:57.7]} 2. Nf3 {[%clk 0:02:53.3]}
2... Nc6 {[%clk 0:02:56.3]} 3. d4 {[%clk 0:02:53.6]} 3... cxd4 {[%clk
0:02:56.3]} 4. Nxd4 {[%clk 0:02:54.5]} 4... Nf6 {[%clk 0:02:56.8]} 5. Nc3 {[%clk
0:02:49.8]} 5... e5 {[%clk 0:02:56.6]} 6. Ndb5 {[%clk 0:02:50.1]} 6... d6 {[%clk
0:02:57.1]} 7. Bg5 {[%clk 0:02:50.3]} 7... a6 {[%clk 0:02:57.6]} 8. Na3 {[%clk
0:02:50.7]} 8... b5 {[%clk 0:02:58.2]} 9. Nd5 {[%clk 0:02:51.2]} 9... Be7 {[%clk
0:02:58.8]} 10. Bxf6 {[%clk 0:02:51.8]} 10... Bxf6 {[%clk 0:02:59.7]} 11. c3
{[%clk 0:02:52.2]} 11... O-O {[%clk 0:02:59.4]} 12. Nc2 {[%clk 0:02:52.6]} 12...
Bg5 {[%clk 0:02:59.5]} 13. a4 {[%clk 0:02:52.8]} 13... bxa4 {[%clk 0:03:00.4]}
14. Rxa4 {[%clk 0:02:52.8]} 14... a5 {[%clk 0:03:00.8]} 15. Bc4 {[%clk
0:02:53.3]} 15... Rb8 {[%clk 0:03:00.9]} 16. b3 {[%clk 0:02:53.9]} 16... g6
{[%clk 0:03:01]} 17. h4 {[%clk 0:02:42.4]} 17... Bxh4 {[%clk 0:03:00.5]} 18. g3
{[%clk 0:02:42.7]} 18... Bg5 {[%clk 0:03:01.1]} 19. f4 {[%clk 0:02:43.1]} 19...
exf4 {[%clk 0:03:01.3]} 20. gxf4 {[%clk 0:02:44]} 20... Bh4+ {[%clk 0:03:01.9]}
21. Kd2 {[%clk 0:02:43.6]} 21... Kh8 {[%clk 0:02:57.7]} 22. Nce3 {[%clk
0:02:43.1]} 22... Ne7 {[%clk 0:02:50.3]} 23. Ra2 {[%clk 0:02:39.1]} 23... Nxd5
{[%clk 0:02:46.8]} 24. Nxd5 {[%clk 0:02:39]} 24... f5 {[%clk 0:02:43.1]} 25. Kc1
{[%clk 0:02:36.1]} 25... Rb7 {[%clk 0:02:25.9]} 26. Rah2 {[%clk 0:02:35.8]}
26... g5 {[%clk 0:02:25.7]} 27. Qd4+ {[%clk 0:02:31.8]} 27... Rg7 {[%clk
0:02:21.4]} 28. fxg5 {[%clk 0:01:57.4]} 28... Bxg5+ {[%clk 0:02:14.2]} 29. Kb2
{[%clk 0:01:55.5]} 29... Bf6 {[%clk 0:02:12.7]} 30. Qg1 {[%clk 0:01:13.7]} 30...
Rff7 {[%clk 0:01:28]} 31. Nxf6 {[%clk 0:01:01.6]} 31... Qxf6 {[%clk 0:00:56.8]}
32. Bxf7 {[%clk 0:01:01.6]} 32... Qxf7 {[%clk 0:00:46.3]} 33. Qd4 {[%clk
0:01:00.8]} 33... Kg8 {[%clk 0:00:45.9]} 34. exf5 {[%clk 0:01:00.6]} 34... Bxf5
{[%clk 0:00:45.5]} 35. Rf2 {[%clk 0:00:58.2]} 35... Qg6 {[%clk 0:00:39.1]} 36.
Rhf1 {[%clk 0:00:57.2]} 36... Rf7 {[%clk 0:00:37.2]} 37. Rd2 {[%clk 0:00:44.1]}
37... h5 {[%clk 0:00:33.8]} 38. Qxd6 {[%clk 0:00:42.8]} 38... Qxd6 {[%clk
0:00:23.8]} 39. Rxd6 {[%clk 0:00:43.7]} 39... h4 {[%clk 0:00:24.5]} 40. Rd5
{[%clk 0:00:40.4]} 40... Be6 {[%clk 0:00:20.5]} 41. Rg5+ {[%clk 0:00:35.3]}
41... Kf8 {[%clk 0:00:20.1]} 42. Rxf7+ {[%clk 0:00:32.6]} 42... Kxf7 {[%clk
0:00:21]} 43. Rxa5 {[%clk 0:00:32.1]} 43... h3 {[%clk 0:00:21.4]} 44. Rh5 {[%clk
0:00:28.9]} 44... Kg6 {[%clk 0:00:21.3]} 45. Rh8 {[%clk 0:00:28.3]} 45... Kg5
{[%clk 0:00:21]} 46. c4 {[%clk 0:00:26.3]} 46... Kf4 {[%clk 0:00:20.9]} 47. c5
{[%clk 0:00:25.4]} 47... Ke5 {[%clk 0:00:20.8]} 48. b4 {[%clk 0:00:25.8]} 48...
Kd5 {[%clk 0:00:21]} 49. Kc3 {[%clk 0:00:26]} 49... Kc6 {[%clk 0:00:20.4]} 50.
Rh6 {[%clk 0:00:25.9]} 50... Kd7 {[%clk 0:00:20.7]} 51. c6+ {[%clk 0:00:25.9]}
51... Kd6 {[%clk 0:00:21.1]} 52. b5 {[%clk 0:00:26]} 52... h2 {[%clk 0:00:16.5]}
53. Rxh2 {[%clk 0:00:25.3]} 53... Kc5 {[%clk 0:00:17.4]} 54. Rh5+ {[%clk
0:00:24.7]} 54... Kb6 {[%clk 0:00:17.4]} 55. Kb4 {[%clk 0:00:24.4]} 55... Bg4
{[%clk 0:00:17.2]} 56. Rh7 {[%clk 0:00:24.3]} 56... Bc8 {[%clk 0:00:16.9]} 57.
Rh8 {[%clk 0:00:24.3]} 57... Be6 {[%clk 0:00:15.9]} 58. Rb8+ {[%clk 0:00:23.8]}
58... Ka7 {[%clk 0:00:16.1]} 59. Rb7+ {[%clk 0:00:24.2]} 59... Ka8 {[%clk
0:00:16.3]} 60. Kc5 {[%clk 0:00:23.7]} 60... Bc8 {[%clk 0:00:13.5]} 61. Rh7
{[%clk 0:00:23.1]} 61... Bf5 {[%clk 0:00:13.2]} 62. Rg7 {[%clk 0:00:22.5]} 62...
Bc8 {[%clk 0:00:12.5]} 63. b6 {[%clk 0:00:22.2]} 63... Kb8 {[%clk 0:00:13.3]}
64. Rg8 {[%clk 0:00:21.2]} 1-0

[Event "*** Titled Tuesday Blitz"]
[Site "Chess.com"]
[Date "2020.04.21"]
[Round "2"]
[White "stasiek18"]
[Black "Ekka83"]
[Result "0-1"]
[WhiteElo "2417"]
[BlackElo "2298"]
[TimeControl "180+1"]
[EndTime "10:18:32 PDT"]
[Termination "Ekka83 won on time"]

1. e4 {[%clk 0:03:00.9]} 1... d5 {[%clk 0:02:58]} 2. exd5 {[%clk 0:02:59.2]}
2... Qxd5 {[%clk 0:02:58.9]} 3. Nc3 {[%clk 0:02:58.3]} 3... Qd6 {[%clk
0:02:58.7]} 4. d4 {[%clk 0:02:56.5]} 4... c6 {[%clk 0:02:58.6]} 5. g3 {[%clk
0:02:53.8]} 5... Nf6 {[%clk 0:02:58.1]} 6. Bf4 {[%clk 0:02:50.4]} 6... Qd8
{[%clk 0:02:57.8]} 7. Bg2 {[%clk 0:02:48.1]} 7... Bg4 {[%clk 0:02:55.5]} 8. Qd2
{[%clk 0:02:46.2]} 8... e6 {[%clk 0:02:54.6]} 9. Nf3 {[%clk 0:02:43.3]} 9... Be7
{[%clk 0:02:53.1]} 10. O-O {[%clk 0:02:42.9]} 10... Nbd7 {[%clk 0:02:52]} 11.
Rfe1 {[%clk 0:02:40]} 11... O-O {[%clk 0:02:50.6]} 12. Ne5 {[%clk 0:02:27.5]}
12... Bf5 {[%clk 0:02:40.5]} 13. Qe2 {[%clk 0:02:15.6]} 13... Nd5 {[%clk
0:02:35.6]} 14. Nxd5 {[%clk 0:02:06.8]} 14... cxd5 {[%clk 0:02:34]} 15. c3
{[%clk 0:02:06.8]} 15... Rc8 {[%clk 0:02:32.1]} 16. h4 {[%clk 0:01:25.6]} 16...
h6 {[%clk 0:02:18.1]} 17. Qb5 {[%clk 0:01:04.9]} 17... Nb6 {[%clk 0:01:56.3]}
18. Bf3 {[%clk 0:00:57.1]} 18... Bh7 {[%clk 0:01:54.3]} 19. Kg2 {[%clk
0:00:54.7]} 19... a6 {[%clk 0:01:31.6]} 20. Qe2 {[%clk 0:00:53.7]} 20... Nc4
{[%clk 0:01:30.2]} 21. Nxc4 {[%clk 0:00:50.3]} 21... Rxc4 {[%clk 0:01:31.1]} 22.
a4 {[%clk 0:00:44.1]} 22... Qb6 {[%clk 0:01:05.1]} 23. Qd2 {[%clk 0:00:21.4]}
23... Qb3 {[%clk 0:00:57.9]} 24. Bd1 {[%clk 0:00:20.1]} 24... Qb6 {[%clk
0:00:54]} 25. a5 {[%clk 0:00:19.8]} 25... Qd8 {[%clk 0:00:53.7]} 26. Rh1 {[%clk
0:00:16.7]} 26... Bd6 {[%clk 0:00:37.2]} 27. Bxd6 {[%clk 0:00:15.2]} 27... Qxd6
{[%clk 0:00:38.1]} 28. Be2 {[%clk 0:00:15.6]} 28... Rc7 {[%clk 0:00:22.6]} 29.
Ra4 {[%clk 0:00:15.4]} 29... Rfc8 {[%clk 0:00:21.4]} 30. Rb4 {[%clk 0:00:14.3]}
30... e5 {[%clk 0:00:17.6]} 31. dxe5 {[%clk 0:00:13.7]} 31... Qxe5 {[%clk
0:00:18.5]} 32. Bf3 {[%clk 0:00:12.9]} 32... Rc5 {[%clk 0:00:16.9]} 33. Ra1
{[%clk 0:00:11.2]} 33... R8c7 {[%clk 0:00:15.6]} 34. Qd4 {[%clk 0:00:11]} 34...
Qxd4 {[%clk 0:00:13.8]} 35. Rxd4 {[%clk 0:00:11.1]} 35... Rd7 {[%clk 0:00:12.9]}
36. Raa4 {[%clk 0:00:09.3]} 36... Bc2 {[%clk 0:00:10.2]} 37. Rab4 {[%clk
0:00:08.9]} 37... Rxa5 {[%clk 0:00:10]} 38. Bg4 {[%clk 0:00:05.1]} 38... f5
{[%clk 0:00:08.7]} 39. Bh5 {[%clk 0:00:04]} 39... Be4+ {[%clk 0:00:08.4]} 40. f3
{[%clk 0:00:03.6]} 40... Bc2 {[%clk 0:00:07.7]} 41. Bg6 {[%clk 0:00:03.8]} 41...
Rb5 {[%clk 0:00:05.8]} 42. Rxb5 {[%clk 0:00:03.7]} 42... axb5 {[%clk 0:00:06.7]}
43. h5 {[%clk 0:00:02.7]} 43... Kf8 {[%clk 0:00:06.3]} 44. Kf2 {[%clk 0:00:03]}
44... Ke7 {[%clk 0:00:06.5]} 45. Ke3 {[%clk 0:00:03.3]} 45... Kf6 {[%clk
0:00:07]} 46. Kf4 {[%clk 0:00:03.6]} 46... Bb1 {[%clk 0:00:07]} 47. b3 {[%clk
0:00:02.9]} 47... Bc2 {[%clk 0:00:06.6]} 48. b4 {[%clk 0:00:03.2]} 48... Bb1
{[%clk 0:00:06.2]} 49. Rd1 {[%clk 0:00:03.1]} 49... Bc2 {[%clk 0:00:05.9]} 50.
Re1 {[%clk 0:00:02.8]} 50... Re7 {[%clk 0:00:05.2]} 51. Rxe7 {[%clk 0:00:01.8]}
51... Kxe7 {[%clk 0:00:06.1]} 52. Bxf5 {[%clk 0:00:01.4]} 52... Bb3 {[%clk
0:00:07]} 0-1

[Event "*** Titled Tuesday Blitz"]
[Site "Chess.com"]
[Date "2020.04.21"]
[Round "2"]
[White "masteryoungK"]
[Black "ClockworkKubrick"]
[Result "0-1"]
[WhiteElo "2405"]
[BlackElo "2165"]
[TimeControl "180+1"]
[EndTime "10:18:33 PDT"]
[Termination "ClockworkKubrick won by checkmate"]

1. Nf3 {[%clk 0:02:58.2]} 1... d6 {[%clk 0:03:00.9]} 2. d4 {[%clk 0:02:56.1]}
2... Nf6 {[%clk 0:03:01.8]} 3. g3 {[%clk 0:02:56.3]} 3... g6 {[%clk 0:03:02.7]}
4. Bg2 {[%clk 0:02:56.6]} 4... Bg7 {[%clk 0:03:03.4]} 5. O-O {[%clk 0:02:57]}
5... O-O {[%clk 0:03:04.1]} 6. c4 {[%clk 0:02:57.2]} 6... Nbd7 {[%clk
0:03:04.3]} 7. Nc3 {[%clk 0:02:57.1]} 7... c6 {[%clk 0:03:05]} 8. e4 {[%clk
0:02:54.9]} 8... e5 {[%clk 0:03:05.4]} 9. Re1 {[%clk 0:02:54.6]} 9... h6 {[%clk
0:03:04.6]} 10. h3 {[%clk 0:02:54.4]} 10... a6 {[%clk 0:03:04.8]} 11. Be3 {[%clk
0:02:41.9]} 11... Rb8 {[%clk 0:03:03.7]} 12. a4 {[%clk 0:02:41]} 12... Re8
{[%clk 0:03:01.3]} 13. d5 {[%clk 0:02:38.7]} 13... cxd5 {[%clk 0:02:59]} 14.
cxd5 {[%clk 0:02:36.4]} 14... b5 {[%clk 0:02:57.4]} 15. axb5 {[%clk 0:02:36]}
15... axb5 {[%clk 0:02:57]} 16. Nd2 {[%clk 0:02:36.5]} 16... b4 {[%clk
0:02:51.3]} 17. Na4 {[%clk 0:02:33]} 17... Ba6 {[%clk 0:02:45.2]} 18. Rc1 {[%clk
0:02:27.1]} 18... Bb5 {[%clk 0:02:41.1]} 19. b3 {[%clk 0:02:23.9]} 19... Rf8
{[%clk 0:02:32.4]} 20. Nc4 {[%clk 0:02:19.7]} 20... Bxa4 {[%clk 0:02:27]} 21.
bxa4 {[%clk 0:02:18.8]} 21... Nc5 {[%clk 0:02:27.1]} 22. Nxd6 {[%clk 0:02:16.1]}
22... Nxa4 {[%clk 0:02:17.7]} 23. Qxa4 {[%clk 0:02:15.6]} 23... Qxd6 {[%clk
0:02:16.5]} 24. Bc5 {[%clk 0:02:16]} 24... Qd8 {[%clk 0:02:06.6]} 25. Bxf8
{[%clk 0:02:15.9]} 25... Bxf8 {[%clk 0:02:07.2]} 26. Rb1 {[%clk 0:01:56.6]}
26... Qb6 {[%clk 0:02:03.9]} 27. Qc6 {[%clk 0:01:53.2]} 27... Bc5 {[%clk
0:01:56.7]} 28. Kh2 {[%clk 0:01:43.5]} 28... Kg7 {[%clk 0:01:51.9]} 29. f4
{[%clk 0:01:41.2]} 29... Bd4 {[%clk 0:01:36.4]} 30. Rec1 {[%clk 0:01:19]} 30...
b3 {[%clk 0:01:33.7]} 31. Qxb6 {[%clk 0:01:12.1]} 31... Rxb6 {[%clk 0:01:32.6]}
32. Rc6 {[%clk 0:01:11.3]} 32... Rb7 {[%clk 0:01:12.9]} 33. d6 {[%clk
0:00:47.1]} 33... b2 {[%clk 0:01:12.1]} 34. Rc7 {[%clk 0:00:42.6]} 34... Rb8
{[%clk 0:01:09]} 35. d7 {[%clk 0:00:41.3]} 35... Rd8 {[%clk 0:01:08.9]} 36. fxe5
{[%clk 0:00:40.5]} 36... Bxe5 {[%clk 0:01:08]} 37. Rd1 {[%clk 0:00:39.3]} 37...
Kf8 {[%clk 0:01:06]} 38. Rc8 {[%clk 0:00:33.7]} 38... Ke7 {[%clk 0:01:05.5]} 39.
Rxd8 {[%clk 0:00:34.1]} 39... Kxd8 {[%clk 0:01:05.7]} 40. h4 {[%clk 0:00:34.7]}
40... h5 {[%clk 0:01:01.2]} 41. Bf3 {[%clk 0:00:25.9]} 41... Bc3 {[%clk
0:00:57.1]} 42. Kh3 {[%clk 0:00:25.6]} 42... Bd2 {[%clk 0:00:56.1]} 43. e5
{[%clk 0:00:16]} 43... Nxd7 {[%clk 0:00:46.3]} 44. Be4 {[%clk 0:00:15]} 44...
Ke7 {[%clk 0:00:40.2]} 45. Rxd2 {[%clk 0:00:13.8]} 45... Nxe5 {[%clk 0:00:40.1]}
46. Re2 {[%clk 0:00:14.2]} 46... Nc4 {[%clk 0:00:38]} 47. Bb1+ {[%clk
0:00:15.1]} 47... Kf6 {[%clk 0:00:37.8]} 48. g4 {[%clk 0:00:15.5]} 48... hxg4+
{[%clk 0:00:33.1]} 49. Kxg4 {[%clk 0:00:16.4]} 49... Ne5+ {[%clk 0:00:33.4]} 50.
Kh3 {[%clk 0:00:15.7]} 50... Nc4 {[%clk 0:00:31.7]} 51. Bd3 {[%clk 0:00:13.1]}
51... Ne5 {[%clk 0:00:26.6]} 52. Ba6 {[%clk 0:00:08.6]} 52... b1=Q {[%clk
0:00:25.4]} 53. Rf2+ {[%clk 0:00:08.9]} 53... Ke7 {[%clk 0:00:24.3]} 54. Bf1
{[%clk 0:00:08.4]} 54... Qb3+ {[%clk 0:00:22.7]} 55. Kg2 {[%clk 0:00:06.9]}
55... f5 {[%clk 0:00:22.2]} 56. Re2 {[%clk 0:00:07.1]} 56... Kf6 {[%clk
0:00:22.1]} 57. Rf2 {[%clk 0:00:05.6]} 57... Ng4 {[%clk 0:00:21.3]} 58. Rf3
{[%clk 0:00:05.1]} 58... Qc2+ {[%clk 0:00:20.7]} 59. Kg3 {[%clk 0:00:05.3]}
59... Qh2# {[%clk 0:00:19.9]} 0-1